Workbook

Sheet ＴＯＰ
B4: 入力・移動 各シートの | E4: に必要事項を入力します。
B5: 印刷 各シートはＡ４サイズの用紙に出力されます。
B7: 入力・移動 | D7: 印刷 | F7: 説明
F9: 事業者名と年齢、シミュレーションの対象年度を入力してください。
F11: 前年一年の個人事業の所得税青色申告決算書の数字を転記します（シミュレーションの基礎数字になります。）
F13: 前年の所得税確定申告書の第一表の数字を転記します。
F15: 個人事業の青色専従者の給与の状況と、法人成り後に家族に支払う給与の見込額を入力します。
F17: 法人成り後の税理士報酬の増加額など経費の増減額を、こちらに入力します。
F19: 所得税青色申告決算書の数字を、自動的に法人の損益計算書に組み替えます。追加事項がある場合には、入力してください。
F21: 組み替えた損益計算書から、法人の税金を計算します。交際費等以外の申告調整項目がある場合には、入力してください。
F23: 個人事業の場合の税金・社会保険料の負担額と、法人成り後の税金・社会保険料を一枚のシートで対比します。
F25: 提供：小林敬幸税理士事務所
F26: Ver. 1.0

Sheet 基本情報入力
C7: ●基本情報
C8: お名前 | F8: 今野 友夫
C10: 年齢 | F10: 35
C12: ●シミュレーション年度 | F12: 平成 | G12: 25 | H12: 年度

Sheet 個人青色申告決算書
E6: 平成 | F6: =基本情報入力!G12 -> 25 | G6: 年度分青色決算書
D7: 住所 | J7: 氏名 | L7: =基本情報入力!F8 -> 今野 友夫
D8: 事業所住所 | J8: 電話番号
D9: 業種名 | H9: 屋号 | J9: 加入団体
B10: 損 益 計 算 書 | F10: (自 | G10: =DATE(F6+1988,1,1) -> 2013-01-01 | I10: 至 | J10: =DATE(F6+1988,12,31) -> 2013-12-31 | M10: )
B11: 科 目 | E11: 金 額 | F11: 科 目 | I11: 金 額 | J11: 科 目 | N11: 金 額
B12: 売上金額 | D12: 1 | E12: 15800000 | F12: 経 費 | G12: 消耗品費 | H12: 17 | I12: 750000 | J12: 各種引当金・準備金 | K12: 繰戻額等 | L12: 貸倒引当金 | M12: 34 | N12: 0
G13: 減価償却費 | H13: 18 | I13: 300000 | M13: 35
B14: 売上原価 | C14: 期首商品 | D14: 2 | G14: 福利厚生費 | H14: 19 | M14: 36
C15: 仕入高 | D15: 3 | G15: 給与賃金 | H15: 20 | I15: 0 | L15: 計 | M15: 37 | N15: =SUM(N12:N14) -> 0
C16: 小計 | D16: 4 | E16: =SUM(E14:E15) -> 0 | G16: 外注工賃 | H16: 21 | I16: 1115810 | K16: 繰入額等 | L16: 専従者給与 | M16: 38 | N16: 1020000
C17: 期末商品 | D17: 5 | E17: 0 | G17: 利子割引料 | H17: 22 | I17: 500000 | L17: 貸倒引当金 | M17: 39 | N17: 0
C18: 差引原価 | D18: 6 | E18: =E16-E17 -> 0 | G18: 地代家賃 | H18: 23 | I18: 430000 | M18: 40
B19: 差引金額 | D19: 7 | E19: =E12-E18 -> 15800000 | G19: 貸倒金 | H19: 24 | I19: 0 | M19: 41
G20: 支払手数料 | H20: 25 | I20: 600000 | L20: 計 | M20: 42 | N20: =SUM(N16:N19) -> 1020000
B21: 経 費 | C21: 租税公課 | D21: 8 | E21: 50000 | G21: 車両費 | H21: 26 | I21: 250000 | J21: 青色特別控除前の所得金額 | M21: 43 | N21: =I28+N15-N20 -> 7750000
C22: 荷造運賃 | D22: 9 | E22: 354600 | G22: 消費税 | H22: 27 | I22: 330000 | J22: 青色申告特別控除額 | M22: 44 | N22: 650000
C23: 水道光熱費 | D23: 10 | E23: 120852 | H23: 28 | I23: 0 | J23: 所 得 金 額 | M23: 45 | N23: =N21-N22 -> 7100000
C24: 旅費交通費 | D24: 11 | E24: 546717 | H24: 29 | I24: 0
C25: 通信費 | D25: 12 | E25: 376521 | G25: 税理士顧問料 | H25: 30 | I25: 330000
C26: 広告宣伝費 | D26: 13 | E26: 323500 | G26: 雑費 | H26: 31 | I26: 182000
C27: 接待交際費 | D27: 14 | E27: 450000 | G27: 計 | H27: 32 | I27: =SUM(E21:E29,I12:I26) -> 7030000
C28: 損害保険料 | D28: 15 | E28: 20000 | F28: 差引金額 | H28: 33 | I28: =E19-I27 -> 8770000
C29: 修繕費 | D29: 16

Sheet 事業主の所得税申告状況
A7: 個人事業主の所得税申告状況
B8: 名前 | C8: =個人青色申告決算書!L7 -> 今野 友夫
C9: 元の金額 | D9: 増減額 | E9: 増減後の金額
A10: ①所得金額 | B10: 事業所得の金額 | C10: =個人青色申告決算書!N23 -> 7100000 | E10: =SUM(C10:D10) -> 7100000
B11: その他の所得の額 | E11: =SUM(C11:D11) -> 0
B12: 所得金額合計 | C12: =SUM(C10:C11) -> 7100000 | E12: =SUM(E10:E11) -> 7100000
A13: ②所得控除額 | B13: 社会保険料控除額
B14: （国民健康保険料） | C14: 530000 | E14: =SUM(C14:D14) -> 530000
B15: （国民年金保険料） | C15: 170000 | E15: 170000
B16: （その他の社会保険料） | E16: 0
B17: 小規模企業共済掛金控除 | E17: 0
B18: 生命保険料控除 | C18: 50000 | E18: 50000
B19: 地震保険料控除 | E19: 0
B20: 寡婦・寡夫控除 | E20: 0
B21: 障害者控除 | E21: 0
B22: 配偶者控除 | E22: 0
B23: 配偶者特別控除 | E23: 0
B24: 扶養控除 | C24: 380000 | E24: 380000
B25: その他の所得控除 | C25: 50000 | E25: 50000
B26: 基礎控除 | C26: 380000 | E26: 380000
B27: 所得控除額合計 | C27: =SUM(C13:C26) -> 1560000 | E27: =SUM(E13:E26) -> 1560000
A28: ①－② | B28: 課税所得金額 | C28: =IF(C12-C27<0,0,C12-C27) -> 5540000 | E28: =IF(E12-E27<0,0,E12-E27) -> 5540000
B29: 所得税額 | C29: =IF(C28<=1950000,ROUNDDOWN(C28*0.05,0),IF(C28<=3300000,ROUNDDOWN(C28*0.1-97500,0),IF(C28<=6950000,ROUNDDOWN(C28*0.2-427500,0),IF(C28<=9000000,ROUNDDOWN(C28*0.23-636000,0),IF(C28<=18000000,ROUNDDOWN(C28*0.33-1536000,0),ROUNDDOWN(C28*0.4-2796000,0)))))) -> 680500 | E29: =IF(E28<=1950000,ROUNDDOWN(E28*0.05,-2),IF(E28<=3300000,ROUNDDOWN(E28*0.1-97500,-2),IF(E28<=6950000,ROUNDDOWN(E28*0.2-427500,-2),IF(E28<=9000000,ROUNDDOWN(E28*0.23-636000,-2),IF(E28<=18000000,ROUNDDOWN(E28*0.33-1536000,-2),ROUNDDOWN(E28*0.4-2796000,-2)))))) -> 680500
B30: 所得税+復興特別所得税額 （所得税額×１０２．１％） | C30: =ROUNDDOWN(C29*1.021,-2) -> 694700 | E30: =ROUNDDOWN(E29*1.021,-2) -> 694700
B31: 住民税額 （所得税課税所得×１０％（概算）） | C31: =ROUNDDOWN(C28*0.1,-2) -> 554000 | E31: =ROUNDDOWN(E28*0.1,-2) -> 554000
B32: 事業税額 | C32: =IF((個人青色申告決算書!N21)>2900000,ROUNDDOWN((個人青色申告決算書!N21-2900000)*C34,-2),0) -> 242500 | E32: =IF((個人青色申告決算書!N21)>2900000,ROUNDDOWN((個人青色申告決算書!N21-2900000)*C34,-2),0) -> 242500
B33: 税額合計 | C33: =SUM(C30:C32) -> 1491200 | E33: =SUM(E30:E32) -> 1491200
B34: 個人事業税率 | C34: 0.05 | D34: ←ほとんどの業種は、5.0％になります。

Sheet 給与の情報
A6: 個人事業の専従者給与及び法人成り後の家族従業員の給与の状況
C7: 個人事業 | I7: 法人成り後
C8: 一人目 | D8: 二人目 | E8: 三人目 | F8: 四人目 | G8: 合計 | I8: 事業主 | J8: 一人目 | K8: 二人目 | L8: 三人目 | M8: 四人目 | N8: 合計
B9: 名前 | C9: 今野 朝子 | I9: =個人青色申告決算書!L7 -> 今野 友夫 | J9: 今野 朝子
B10: 年齢 | C10: 33 | I10: =基本情報入力!F10 -> 35 | J10: 33
B11: 関係 | C11: 妻 | J11: 妻
A12: ①所得金額 | B12: 給与の額 | C12: 1020000 | G12: =SUM(C12:F12) -> 1020000 | H12: =IF(G12=個人青色申告決算書!N16,"ＯＫ","不一致") -> ＯＫ | I12: 8250000 | J12: 1020000 | N12: =SUM(I12:M12) -> 9270000
B13: 月額給与 | I13: =ROUNDDOWN(I12/12,0) -> 687500 | J13: =ROUNDDOWN(J12/12,0) -> 85000 | K13: =ROUNDDOWN(K12/12,0) -> 0 | L13: =ROUNDDOWN(L12/12,0) -> 0 | M13: =ROUNDDOWN(M12/12,0) -> 0
B14: 給与所得額 | C14: =IF(C12<=650000,C12-C12,IF(C12<=1625000,C12-650000,IF(C12<=1800000,C12-(C12*0.4),IF(C12<=3600000,C12-(C12*0.3+180000),IF(C12<=6600000,C12-(C12*0.2+540000),IF(C12<=10000000,C12-(C12*0.1+1200000),C12-(C12*0.05+1700000))))))) -> 370000 | D14: =IF(D12<=650000,D12-D12,IF(D12<=1625000,D12-650000,IF(D12<=1800000,D12-(D12*0.4),IF(D12<=3600000,D12-(D12*0.3+180000),IF(D12<=6600000,D12-(D12*0.2+540000),IF(D12<=10000000,D12-(D12*0.1+1200000),D12-(D12*0.05+1700000))))))) -> 0 | E14: =IF(E12<=650000,E12-E12,IF(E12<=1625000,E12-650000,IF(E12<=1800000,E12-(E12*0.4),IF(E12<=3600000,E12-(E12*0.3+180000),IF(E12<=6600000,E12-(E12*0.2+540000),IF(E12<=10000000,E12-(E12*0.1+1200000),E12-(E12*0.05+1700000))))))) -> 0 | F14: =IF(F12<=650000,F12-F12,IF(F12<=1625000,F12-650000,IF(F12<=1800000,F12-(F12*0.4),IF(F12<=3600000,F12-(F12*0.3+180000),IF(F12<=6600000,F12-(F12*0.2+540000),IF(F12<=10000000,F12-(F12*0.1+1200000),F12-(F12*0.05+1700000))))))) -> 0 | I14: =IF(I12<=650000,I12-I12,IF(I12<=1625000,I12-650000,IF(I12<=1800000,I12-(I12*0.4),IF(I12<=3600000,I12-(I12*0.3+180000),IF(I12<=6600000,I12-(I12*0.2+540000),IF(I12<=10000000,I12-(I12*0.1+1200000),I12-(I12*0.05+1700000))))))) -> 6225000 | J14: =IF(J12<=650000,J12-J12,IF(J12<=1625000,J12-650000,IF(J12<=1800000,J12-(J12*0.4),IF(J12<=3600000,J12-(J12*0.3+180000),IF(J12<=6600000,J12-(J12*0.2+540000),IF(J12<=10000000,J12-(J12*0.1+1200000),J12-(J12*0.05+1700000))))))) -> 370000 | K14: =IF(K12<=650000,K12-K12,IF(K12<=1625000,K12-650000,IF(K12<=1800000,K12-(K12*0.4),IF(K12<=3600000,K12-(K12*0.3+180000),IF(K12<=6600000,K12-(K12*0.2+540000),IF(K12<=10000000,K12-(K12*0.1+1200000),K12-(K12*0.05+1700000))))))) -> 0 | L14: =IF(L12<=650000,L12-L12,IF(L12<=1625000,L12-650000,IF(L12<=1800000,L12-(L12*0.4),IF(L12<=3600000,L12-(L12*0.3+180000),IF(L12<=6600000,L12-(L12*0.2+540000),IF(L12<=10000000,L12-(L12*0.1+1200000),L12-(L12*0.05+1700000))))))) -> 0 | M14: =IF(M12<=650000,M12-M12,IF(M12<=1625000,M12-650000,IF(M12<=1800000,M12-(M12*0.4),IF(M12<=3600000,M12-(M12*0.3+180000),IF(M12<=6600000,M12-(M12*0.2+540000),IF(M12<=10000000,M12-(M12*0.1+1200000),M12-(M12*0.05+1700000))))))) -> 0
B15: その他の所得の額 | I15: =事業主の所得税申告状況!E11 -> 0
B16: 所得金額合計 | C16: =SUM(C14:C15) -> 370000 | D16: =SUM(D14:D15) -> 0 | E16: =SUM(E14:E15) -> 0 | F16: =SUM(F14:F15) -> 0 | I16: =SUM(I14:I15) -> 6225000 | J16: =SUM(J14:J15) -> 370000 | K16: =SUM(K14:K15) -> 0 | L16: =SUM(L14:L15) -> 0 | M16: =SUM(M14:M15) -> 0
A17: ②所得控除額 | B17: 社会保険料控除額 | I17: =I40 ->  | J17: =J40 ->  | K17: =K40 ->  | L17: =L40 ->  | M17: =M40 -> 
B18: （国民健康保険料） | I18: 530000 | N18: =SUM(I18:M18) -> 530000
B19: （国民年金保険料） | C19: 170000 | G19: =SUM(C19:F19) -> 170000 | I19: 170000 | J19: 170000 | N19: =SUM(I19:M19) -> 340000
B20: （その他の社会保険料） | I20: =事業主の所得税申告状況!E16 -> 0
B21: 小規模企業共済掛金控除 | I21: =事業主の所得税申告状況!E17 -> 0
B22: 生命保険料控除 | I22: =事業主の所得税申告状況!E18 -> 50000
B23: 地震保険料控除 | I23: =事業主の所得税申告状況!E19 -> 0
B24: 寡婦・寡夫控除 | I24: =事業主の所得税申告状況!E20 -> 0
B25: 障害者控除 | I25: =事業主の所得税申告状況!E22 -> 0
B26: 配偶者控除 | I26: =事業主の所得税申告状況!E23 -> 0
B27: 配偶者特別控除 | I27: =事業主の所得税申告状況!E23 -> 0
B28: 扶養控除 | I28: =事業主の所得税申告状況!E24 -> 380000
B29: その他の所得控除 | I29: =事業主の所得税申告状況!E25 -> 50000
B30: 基礎控除 | C30: 380000 | D30: 380000 | E30: 380000 | F30: 380000 | I30: =事業主の所得税申告状況!E26 -> 380000 | J30: 380000 | K30: 380000 | L30: 380000 | M30: 380000
B31: 所得控除額合計 | C31: =SUM(C18:C30) -> 550000 | D31: =SUM(D18:D30) -> 380000 | E31: =SUM(E18:E30) -> 380000 | F31: =SUM(F18:F30) -> 380000 | I31: =SUM(I17:I30) -> 1560000 | J31: =SUM(J17:J30) -> 550000 | K31: =SUM(K17:K30) -> 380000 | L31: =SUM(L17:L30) -> 380000 | M31: =SUM(M17:M30) -> 380000
A32: ①－② | B32: 課税所得金額 | C32: =IF(C16-C31<0,0,C16-C31) -> 0 | D32: =IF(D16-D31<0,0,D16-D31) -> 0 | E32: =IF(E16-E31<0,0,E16-E31) -> 0 | F32: =IF(F16-F31<0,0,F16-F31) -> 0 | I32: =IF(I16-I31<0,0,I16-I31) -> 4665000 | J32: =IF(J16-J31<0,0,J16-J31) -> 0 | K32: =IF(K16-K31<0,0,K16-K31) -> 0 | L32: =IF(L16-L31<0,0,L16-L31) -> 0 | M32: =IF(M16-M31<0,0,M16-M31) -> 0
B33: 所得税額 | C33: =IF(C32<=1950000,ROUNDDOWN(C32*0.05,0),IF(C32<=3300000,ROUNDDOWN(C32*0.1-97500,0),IF(C32<=6950000,ROUNDDOWN(C32*0.2-427500,0),IF(C32<=9000000,ROUNDDOWN(C32*0.23-636000,0),IF(C32<=18000000,ROUNDDOWN(C32*0.33-1536000,0),ROUNDDOWN(C32*0.4-2796000,0)))))) -> 0 | D33: =IF(D32<=1950000,ROUNDDOWN(D32*0.05,0),IF(D32<=3300000,ROUNDDOWN(D32*0.1-97500,0),IF(D32<=6950000,ROUNDDOWN(D32*0.2-427500,0),IF(D32<=9000000,ROUNDDOWN(D32*0.23-636000,0),IF(D32<=18000000,ROUNDDOWN(D32*0.33-1536000,0),ROUNDDOWN(D32*0.4-2796000,0)))))) -> 0 | E33: =IF(E32<=1950000,ROUNDDOWN(E32*0.05,0),IF(E32<=3300000,ROUNDDOWN(E32*0.1-97500,0),IF(E32<=6950000,ROUNDDOWN(E32*0.2-427500,0),IF(E32<=9000000,ROUNDDOWN(E32*0.23-636000,0),IF(E32<=18000000,ROUNDDOWN(E32*0.33-1536000,0),ROUNDDOWN(E32*0.4-2796000,0)))))) -> 0 | F33: =IF(F32<=1950000,ROUNDDOWN(F32*0.05,0),IF(F32<=3300000,ROUNDDOWN(F32*0.1-97500,0),IF(F32<=6950000,ROUNDDOWN(F32*0.2-427500,0),IF(F32<=9000000,ROUNDDOWN(F32*0.23-636000,0),IF(F32<=18000000,ROUNDDOWN(F32*0.33-1536000,0),ROUNDDOWN(F32*0.4-2796000,0)))))) -> 0 | G33: =SUM(C33:F33) -> 0 | I33: =IF(I32<=1950000,ROUNDDOWN(I32*0.05,0),IF(I32<=3300000,ROUNDDOWN(I32*0.1-97500,0),IF(I32<=6950000,ROUNDDOWN(I32*0.2-427500,0),IF(I32<=9000000,ROUNDDOWN(I32*0.23-636000,0),IF(I32<=18000000,ROUNDDOWN(I32*0.33-1536000,0),ROUNDDOWN(I32*0.4-2796000,0)))))) -> 505500 | J33: =IF(J32<=1950000,ROUNDDOWN(J32*0.05,0),IF(J32<=3300000,ROUNDDOWN(J32*0.1-97500,0),IF(J32<=6950000,ROUNDDOWN(J32*0.2-427500,0),IF(J32<=9000000,ROUNDDOWN(J32*0.23-636000,0),IF(J32<=18000000,ROUNDDOWN(J32*0.33-1536000,0),ROUNDDOWN(J32*0.4-2796000,0)))))) -> 0 | K33: =IF(K32<=1950000,ROUNDDOWN(K32*0.05,0),IF(K32<=3300000,ROUNDDOWN(K32*0.1-97500,0),IF(K32<=6950000,ROUNDDOWN(K32*0.2-427500,0),IF(K32<=9000000,ROUNDDOWN(K32*0.23-636000,0),IF(K32<=18000000,ROUNDDOWN(K32*0.33-1536000,0),ROUNDDOWN(K32*0.4-2796000,0)))))) -> 0 | L33: =IF(L32<=1950000,ROUNDDOWN(L32*0.05,0),IF(L32<=3300000,ROUNDDOWN(L32*0.1-97500,0),IF(L32<=6950000,ROUNDDOWN(L32*0.2-427500,0),IF(L32<=9000000,ROUNDDOWN(L32*0.23-636000,0),IF(L32<=18000000,ROUNDDOWN(L32*0.33-1536000,0),ROUNDDOWN(L32*0.4-2796000,0)))))) -> 0 | M33: =IF(M32<=1950000,ROUNDDOWN(M32*0.05,0),IF(M32<=3300000,ROUNDDOWN(M32*0.1-97500,0),IF(M32<=6950000,ROUNDDOWN(M32*0.2-427500,0),IF(M32<=9000000,ROUNDDOWN(M32*0.23-636000,0),IF(M32<=18000000,ROUNDDOWN(M32*0.33-1536000,0),ROUNDDOWN(M32*0.4-2796000,0)))))) -> 0 | N33: =SUM(I33:M33) -> 505500
B34: 所得税+復興特別所得税額 （所得税額×１０２．１％） | C34: =ROUNDDOWN(C33*1.021,-2) -> 0 | D34: =ROUNDDOWN(D33*1.021,-2) -> 0 | E34: =ROUNDDOWN(E33*1.021,-2) -> 0 | F34: =ROUNDDOWN(F33*1.021,-2) -> 0 | G34: =SUM(C34:F34) -> 0 | I34: =ROUNDDOWN(I33*1.021,-2) -> 516100 | J34: =ROUNDDOWN(J33*1.021,-2) -> 0 | K34: =ROUNDDOWN(K33*1.021,-2) -> 0 | L34: =ROUNDDOWN(L33*1.021,-2) -> 0 | M34: =ROUNDDOWN(M33*1.021,-2) -> 0 | N34: =SUM(I34:M34) -> 516100
B35: 住民税額 （所得税課税所得×１０％） | C35: =ROUNDDOWN(C32*0.1,-2) -> 0 | D35: =ROUNDDOWN(D32*0.1,-2) -> 0 | E35: =ROUNDDOWN(E32*0.1,-2) -> 0 | F35: =ROUNDDOWN(F32*0.1,-2) -> 0 | G35: =SUM(C35:F35) -> 0 | I35: =ROUNDDOWN(I32*0.1,-2) -> 466500 | J35: =ROUNDDOWN(J32*0.1,-2) -> 0 | K35: =ROUNDDOWN(K32*0.1,-2) -> 0 | L35: =ROUNDDOWN(L32*0.1,-2) -> 0 | M35: =ROUNDDOWN(M32*0.1,-2) -> 0 | N35: =SUM(I35:M35) -> 466500
B36: 税額合計 | C36: =SUM(C34:C35) -> 0 | D36: =SUM(D34:D35) -> 0 | E36: =SUM(E34:E35) -> 0 | F36: =SUM(F34:F35) -> 0 | G36: =SUM(G34:G35) -> 0 | I36: =SUM(I34:I35) -> 982600 | J36: 0 | K36: 0 | L36: 0 | M36: 0 | N36: 982600
A38: 社会 保険料 | B38: 社会保険の加入の有無 | I38: 非加入 | J38: 非加入 | K38: 非加入 | L38: 非加入 | M38: 非加入 | N38: 合計
B39: 法人負担額 | I39: =IF(I38="非加入","",I53*12) ->  | J39: =IF(J38="非加入","",J53*12) ->  | K39: =IF(K38="非加入","",K53*12) ->  | L39: =IF(L38="非加入","",L53*12) ->  | M39: =IF(M38="非加入","",M53*12) ->  | N39: =SUM(I39:M39) -> 0
B40: 個人負担額 | I40: =IF(I38="非加入","",I52*12) ->  | J40: =IF(J38="非加入","",J52*12) ->  | K40: =IF(K38="非加入","",K52*12) ->  | L40: =IF(L38="非加入","",L52*12) ->  | M40: =IF(M38="非加入","",M52*12) ->  | N40: =SUM(I40:M40) -> 0
B41: 合計 | I41: =SUM(I39:I40) -> 0 | J41: =SUM(J39:J40) -> 0 | K41: =SUM(K39:K40) -> 0 | L41: =SUM(L39:L40) -> 0 | M41: =SUM(M39:M40) -> 0 | N41: =SUM(I41:M41) -> 0
A42: 社保算定 基礎数字 | B42: 保険料率の入力（最新の「健康保険・厚生年金保険 標準報酬月額・保険料額表」の料率を入力してください）
B43: 健康保険 | C43: 一般被保険者 | E43: 0.05 | I43: =IF(I10>=75,0,IF(I10>=40,IF(I10>=65,$E43,$E44),$E43)) -> 0.05 | J43: =IF(J10>=75,0,IF(J10>=40,IF(J10>=65,$E43,$E44),$E43)) -> 0.05 | K43: 0.05 | L43: 0.05 | M43: 0.05
C44: 介護保険第２号被保険者 | E44: 0.0586
B45: 厚生年金 | C45: 厚生年金保険料被保険者 | E45: 0.08737 | I45: =IF(I10>=70,0,$E45) -> 0.08737 | J45: =IF(J10>=70,0,$E45) -> 0.08737 | K45: 0.08737 | L45: 0.08737 | M45: 0.08737
B46: 児童手当拠出金 | E46: 0.0013 | I46: =$E46 -> 0.0013 | J46: =$E46 -> 0.0013 | K46: 0.0013 | L46: 0.0013 | M46: 0.0013
B47: 健康保険標準報酬月額 | I47: =標準報酬月額表!F54 -> 680000 | J47: =標準報酬月額表!H54 -> 88000 | K47: =標準報酬月額表!J54 ->  | L47: =標準報酬月額表!L54 ->  | M47: =標準報酬月額表!N54 -> 
B48: 厚生年金標準報酬月額 | I48: =標準報酬月額表!G54 -> 620000 | J48: =標準報酬月額表!I54 -> 98000 | K48: =標準報酬月額表!K54 ->  | L48: =標準報酬月額表!M54 ->  | M48: =標準報酬月額表!O54 -> 
B49: 健康保険月額 | I49: =IF(ISERROR(ROUNDDOWN(I47*I43,0)),"",ROUNDDOWN(I47*I43,0)) -> 34000 | J49: =IF(ISERROR(ROUNDDOWN(J47*J43,0)),"",ROUNDDOWN(J47*J43,0)) -> 4400 | K49: =IF(ISERROR(ROUNDDOWN(K47*K43,0)),"",ROUNDDOWN(K47*K43,0)) ->  | L49: =IF(ISERROR(ROUNDDOWN(L47*L43,0)),"",ROUNDDOWN(L47*L43,0)) ->  | M49: =IF(ISERROR(ROUNDDOWN(M47*M43,0)),"",ROUNDDOWN(M47*M43,0)) -> 
B50: 厚生年金月額 | I50: =IF(ISERROR(ROUNDDOWN(I48*I45,0)),"",ROUNDDOWN(I48*I45,0)) -> 54169 | J50: =IF(ISERROR(ROUNDDOWN(J48*J45,0)),"",ROUNDDOWN(J48*J45,0)) -> 8562 | K50: =IF(ISERROR(ROUNDDOWN(K48*K45,0)),"",ROUNDDOWN(K48*K45,0)) ->  | L50: =IF(ISERROR(ROUNDDOWN(L48*L45,0)),"",ROUNDDOWN(L48*L45,0)) ->  | M50: =IF(ISERROR(ROUNDDOWN(M48*M45,0)),"",ROUNDDOWN(M48*M45,0)) -> 
B51: 児童手当拠出金月額 | I51: =IF(ISERROR(ROUNDDOWN(I48*I46,0)),"",ROUNDDOWN(I48*I46,0)) -> 806 | J51: =IF(ISERROR(ROUNDDOWN(J48*J46,0)),"",ROUNDDOWN(J48*J46,0)) -> 127 | K51: =IF(ISERROR(ROUNDDOWN(K48*K46,0)),"",ROUNDDOWN(K48*K46,0)) ->  | L51: =IF(ISERROR(ROUNDDOWN(L48*L46,0)),"",ROUNDDOWN(L48*L46,0)) ->  | M51: =IF(ISERROR(ROUNDDOWN(M48*M46,0)),"",ROUNDDOWN(M48*M46,0)) -> 
B52: 個人負担合計 | I52: =SUM(I49:I50) -> 88169 | J52: =SUM(J49:J50) -> 12962 | K52: =SUM(K49:K50) -> 0 | L52: =SUM(L49:L50) -> 0 | M52: =SUM(M49:M50) -> 0
B53: 法人負担合計 | I53: =SUM(I49:I51) -> 88975 | J53: =SUM(J49:J51) -> 13089 | K53: =SUM(K49:K51) -> 0 | L53: =SUM(L49:L51) -> 0 | M53: =SUM(M49:M51) -> 0

Sheet 標準報酬月額表 (hidden)
A1: 標準報酬月額表
A3: 等級 | C3: 標準報酬月額 | E3: 報酬月額 | F3: =給与の情報!I9 -> 今野 友夫 | H3: =給与の情報!J9 -> 今野 朝子 | J3: =給与の情報!K9 -> 0 | L3: =給与の情報!L9 -> 0 | N3: =給与の情報!M9 -> 0
F4: =給与の情報!I13 -> 687500 | H4: =給与の情報!J13 -> 85000 | J4: =給与の情報!K13 -> 0 | L4: =給与の情報!L13 -> 0 | N4: =給与の情報!M13 -> 0
C5: 健康保険 | D5: 厚生年金 | F5: 健康保険 | G5: 厚生年金 | H5: 健康保険 | I5: 厚生年金 | J5: 健康保険 | K5: 厚生年金 | L5: 健康保険 | M5: 厚生年金 | N5: 健康保険 | O5: 厚生年金
A6: 1 | B6: － | C6: 58000 | D6: 98000 | E6: 63000 | F6: =IF(F$4<$E6,$C6,"") ->  | G6: =IF(F$4<$E6,$D6,"") ->  | H6: =IF(H$4<$E6,$C6,"") ->  | I6: =IF(H$4<$E6,$D6,"") ->  | J6: =IF(J$4<$E6,$C6,"") -> 58000 | K6: =IF(J$4<$E6,$D6,"") -> 98000 | L6: =IF(L$4<$E6,$C6,"") -> 58000 | M6: =IF(L$4<$E6,$D6,"") -> 98000 | N6: =IF(N$4<$E6,$C6,"") -> 58000 | O6: =IF(N$4<$E6,$D6,"") -> 98000
A7: 2 | B7: － | C7: 68000 | D7: 98000 | E7: 73000 | F7: =IF(F$4<$E7,$C7,"") ->  | G7: =IF(F$4<$E7,$D7,"") ->  | J7: 68000 | K7: 98000 | L7: 68000 | M7: 98000 | N7: 68000 | O7: 98000
A8: 3 | B8: － | C8: 78000 | D8: 98000 | E8: 83000 | J8: 78000 | K8: 98000 | L8: 78000 | M8: 98000 | N8: 78000 | O8: 98000
A9: 4 | B9: － | C9: 88000 | D9: 98000 | E9: 93000 | H9: 88000 | I9: 98000 | J9: 88000 | K9: 98000 | L9: 88000 | M9: 98000 | N9: 88000 | O9: 98000
A10: 5 | B10: 1 | C10: 98000 | D10: 98000 | E10: 101000 | H10: 98000 | I10: 98000 | J10: 98000 | K10: 98000 | L10: 98000 | M10: 98000 | N10: 98000 | O10: 98000
A11: 6 | B11: 2 | C11: 104000 | D11: 104000 | E11: 107000 | H11: 104000 | I11: 104000 | J11: 104000 | K11: 104000 | L11: 104000 | M11: 104000 | N11: 104000 | O11: 104000
A12: 7 | B12: 3 | C12: 110000 | D12: 110000 | E12: 114000 | H12: 110000 | I12: 110000 | J12: 110000 | K12: 110000 | L12: 110000 | M12: 110000 | N12: 110000 | O12: 110000
A13: 8 | B13: 4 | C13: 118000 | D13: 118000 | E13: 122000 | H13: 118000 | I13: 118000 | J13: 118000 | K13: 118000 | L13: 118000 | M13: 118000 | N13: 118000 | O13: 118000
A14: 9 | B14: 5 | C14: 126000 | D14: 126000 | E14: 130000 | H14: 126000 | I14: 126000 | J14: 126000 | K14: 126000 | L14: 126000 | M14: 126000 | N14: 126000 | O14: 126000
A15: 10 | B15: 6 | C15: 134000 | D15: 134000 | E15: 138000 | H15: 134000 | I15: 134000 | J15: 134000 | K15: 134000 | L15: 134000 | M15: 134000 | N15: 134000 | O15: 134000
A16: 11 | B16: 7 | C16: 142000 | D16: 142000 | E16: 146000 | H16: 142000 | I16: 142000 | J16: 142000 | K16: 142000 | L16: 142000 | M16: 142000 | N16: 142000 | O16: 142000
A17: 12 | B17: 8 | C17: 150000 | D17: 150000 | E17: 155000 | H17: 150000 | I17: 150000 | J17: 150000 | K17: 150000 | L17: 150000 | M17: 150000 | N17: 150000 | O17: 150000
A18: 13 | B18: 9 | C18: 160000 | D18: 160000 | E18: 165000 | H18: 160000 | I18: 160000 | J18: 160000 | K18: 160000 | L18: 160000 | M18: 160000 | N18: 160000 | O18: 160000
A19: 14 | B19: 10 | C19: 170000 | D19: 170000 | E19: 175000 | H19: 170000 | I19: 170000 | J19: 170000 | K19: 170000 | L19: 170000 | M19: 170000 | N19: 170000 | O19: 170000
A20: 15 | B20: 11 | C20: 180000 | D20: 180000 | E20: 185000 | H20: 180000 | I20: 180000 | J20: 180000 | K20: 180000 | L20: 180000 | M20: 180000 | N20: 180000 | O20: 180000
A21: 16 | B21: 12 | C21: 190000 | D21: 190000 | E21: 195000 | H21: 190000 | I21: 190000 | J21: 190000 | K21: 190000 | L21: 190000 | M21: 190000 | N21: 190000 | O21: 190000
A22: 17 | B22: 13 | C22: 200000 | D22: 200000 | E22: 210000 | H22: 200000 | I22: 200000 | J22: 200000 | K22: 200000 | L22: 200000 | M22: 200000 | N22: 200000 | O22: 200000
A23: 18 | B23: 14 | C23: 220000 | D23: 220000 | E23: 230000 | H23: 220000 | I23: 220000 | J23: 220000 | K23: 220000 | L23: 220000 | M23: 220000 | N23: 220000 | O23: 220000
A24: 19 | B24: 15 | C24: 240000 | D24: 240000 | E24: 250000 | H24: 240000 | I24: 240000 | J24: 240000 | K24: 240000 | L24: 240000 | M24: 240000 | N24: 240000 | O24: 240000
A25: 20 | B25: 16 | C25: 260000 | D25: 260000 | E25: 270000 | H25: 260000 | I25: 260000 | J25: 260000 | K25: 260000 | L25: 260000 | M25: 260000 | N25: 260000 | O25: 260000
A26: 21 | B26: 17 | C26: 280000 | D26: 280000 | E26: 290000 | H26: 280000 | I26: 280000 | J26: 280000 | K26: 280000 | L26: 280000 | M26: 280000 | N26: 280000 | O26: 280000
A27: 22 | B27: 18 | C27: 300000 | D27: 300000 | E27: 310000 | H27: 300000 | I27: 300000 | J27: 300000 | K27: 300000 | L27: 300000 | M27: 300000 | N27: 300000 | O27: 300000
A28: 23 | B28: 19 | C28: 320000 | D28: 320000 | E28: 330000 | H28: 320000 | I28: 320000 | J28: 320000 | K28: 320000 | L28: 320000 | M28: 320000 | N28: 320000 | O28: 320000
A29: 24 | B29: 20 | C29: 340000 | D29: 340000 | E29: 350000 | H29: 340000 | I29: 340000 | J29: 340000 | K29: 340000 | L29: 340000 | M29: 340000 | N29: 340000 | O29: 340000
A30: 25 | B30: 21 | C30: 360000 | D30: 360000 | E30: 370000 | H30: 360000 | I30: 360000 | J30: 360000 | K30: 360000 | L30: 360000 | M30: 360000 | N30: 360000 | O30: 360000
A31: 26 | B31: 22 | C31: 380000 | D31: 380000 | E31: 395000 | H31: 380000 | I31: 380000 | J31: 380000 | K31: 380000 | L31: 380000 | M31: 380000 | N31: 380000 | O31: 380000
A32: 27 | B32: 23 | C32: 410000 | D32: 410000 | E32: 425000 | H32: 410000 | I32: 410000 | J32: 410000 | K32: 410000 | L32: 410000 | M32: 410000 | N32: 410000 | O32: 410000
A33: 28 | B33: 24 | C33: 440000 | D33: 440000 | E33: 455000 | H33: 440000 | I33: 440000 | J33: 440000 | K33: 440000 | L33: 440000 | M33: 440000 | N33: 440000 | O33: 440000
A34: 29 | B34: 25 | C34: 470000 | D34: 470000 | E34: 485000 | H34: 470000 | I34: 470000 | J34: 470000 | K34: 470000 | L34: 470000 | M34: 470000 | N34: 470000 | O34: 470000
A35: 30 | B35: 26 | C35: 500000 | D35: 500000 | E35: 515000 | H35: 500000 | I35: 500000 | J35: 500000 | K35: 500000 | L35: 500000 | M35: 500000 | N35: 500000 | O35: 500000
A36: 31 | B36: 27 | C36: 530000 | D36: 530000 | E36: 545000 | H36: 530000 | I36: 530000 | J36: 530000 | K36: 530000 | L36: 530000 | M36: 530000 | N36: 530000 | O36: 530000
A37: 32 | B37: 28 | C37: 560000 | D37: 560000 | E37: 575000 | H37: 560000 | I37: 560000 | J37: 560000 | K37: 560000 | L37: 560000 | M37: 560000 | N37: 560000 | O37: 560000
A38: 33 | B38: 29 | C38: 590000 | D38: 590000 | E38: 605000 | H38: 590000 | I38: 590000 | J38: 590000 | K38: 590000 | L38: 590000 | M38: 590000 | N38: 590000 | O38: 590000
A39: 34 | B39: 30 | C39: 620000 | D39: 620000 | E39: 635000 | H39: 620000 | I39: 620000 | J39: 620000 | K39: 620000 | L39: 620000 | M39: 620000 | N39: 620000 | O39: 620000
A40: 35 | B40: － | C40: 650000 | D40: 620000 | E40: 665000 | H40: 650000 | I40: 620000 | J40: 650000 | K40: 620000 | L40: 650000 | M40: 620000 | N40: 650000 | O40: 620000
A41: 36 | B41: － | C41: 680000 | D41: 620000 | E41: 695000 | F41: 680000 | G41: 620000 | H41: 680000 | I41: 620000 | J41: 680000 | K41: 620000 | L41: 680000 | M41: 620000 | N41: 680000 | O41: 620000
A42: 37 | B42: － | C42: 710000 | D42: 620000 | E42: 730000 | F42: 710000 | G42: 620000 | H42: 710000 | I42: 620000 | J42: 710000 | K42: 620000 | L42: 710000 | M42: 620000 | N42: 710000 | O42: 620000
A43: 38 | B43: － | C43: 750000 | D43: 620000 | E43: 770000 | F43: 750000 | G43: 620000 | H43: 750000 | I43: 620000 | J43: 750000 | K43: 620000 | L43: 750000 | M43: 620000 | N43: 750000 | O43: 620000
A44: 39 | B44: － | C44: 790000 | D44: 620000 | E44: 810000 | F44: 790000 | G44: 620000 | H44: 790000 | I44: 620000 | J44: 790000 | K44: 620000 | L44: 790000 | M44: 620000 | N44: 790000 | O44: 620000
A45: 40 | B45: － | C45: 830000 | D45: 620000 | E45: 855000 | F45: 830000 | G45: 620000 | H45: 830000 | I45: 620000 | J45: 830000 | K45: 620000 | L45: 830000 | M45: 620000 | N45: 830000 | O45: 620000
A46: 41 | B46: － | C46: 880000 | D46: 620000 | E46: 905000 | F46: 880000 | G46: 620000 | H46: 880000 | I46: 620000 | J46: 880000 | K46: 620000 | L46: 880000 | M46: 620000 | N46: 880000 | O46: 620000
A47: 42 | B47: － | C47: 930000 | D47: 620000 | E47: 955000 | F47: 930000 | G47: 620000 | H47: 930000 | I47: 620000 | J47: 930000 | K47: 620000 | L47: 930000 | M47: 620000 | N47: 930000 | O47: 620000
A48: 43 | B48: － | C48: 980000 | D48: 620000 | E48: 1005000 | F48: 980000 | G48: 620000 | H48: 980000 | I48: 620000 | J48: 980000 | K48: 620000 | L48: 980000 | M48: 620000 | N48: 980000 | O48: 620000
A49: 44 | B49: － | C49: 1030000 | D49: 620000 | E49: 1055000 | F49: 1030000 | G49: 620000 | H49: 1030000 | I49: 620000 | J49: 1030000 | K49: 620000 | L49: 1030000 | M49: 620000 | N49: 1030000 | O49: 620000
A50: 45 | B50: － | C50: 1090000 | D50: 620000 | E50: 1115000 | F50: 1090000 | G50: 620000 | H50: 1090000 | I50: 620000 | J50: 1090000 | K50: 620000 | L50: 1090000 | M50: 620000 | N50: 1090000 | O50: 620000
A51: 46 | B51: － | C51: 1150000 | D51: 620000 | E51: 1175000 | F51: 1150000 | G51: 620000 | H51: 1150000 | I51: 620000 | J51: 1150000 | K51: 620000 | L51: 1150000 | M51: 620000 | N51: 1150000 | O51: 620000
A52: 47 | B52: － | C52: 1210000 | D52: 620000 | E52: 1175001 | F52: =IF(F$4>=$E52,$C52,"") ->  | G52: =IF(F$4>=$E52,$D52,"") ->  | H52: =IF(H$4>=$E52,$C52,"") ->  | I52: =IF(H$4>=$E52,$D52,"") ->  | J52: =IF(J$4>=$E52,$C52,"") ->  | K52: =IF(J$4>=$E52,$D52,"") ->  | L52: =IF(L$4>=$E52,$C52,"") ->  | M52: =IF(L$4>=$E52,$D52,"") ->  | N52: =IF(N$4>=$E52,$C52,"") ->  | O52: =IF(N$4>=$E52,$D52,"") -> 
F53: =MIN(F6:F52) -> 680000 | G53: 620000 | H53: 88000 | I53: 98000 | J53: 58000 | K53: 98000 | L53: 58000 | M53: 98000 | N53: 58000 | O53: 98000
F54: =IF(F4=0,"",F53) -> 680000 | G54: =IF(F4=0,"",G53) -> 620000 | H54: =IF(H4=0,"",H53) -> 88000 | I54: =IF(H4=0,"",I53) -> 98000 | J54: =IF(J4=0,"",J53) ->  | K54: =IF(J4=0,"",K53) ->  | L54: =IF(L4=0,"",L53) ->  | M54: =IF(L4=0,"",M53) ->  | N54: =IF(N4=0,"",N53) ->  | O54: =IF(N4=0,"",O53) -> 

Sheet 経費の増減
A6: 税理士報酬など個人→法人に変更した際の経費の増減額を入力します
A8: 個人事業の損益計算書
B9: 科 目 | E9: 元の金額 | F9: 増減額 | G9: 増減後の金額
B10: 売上金額 | D10: 1 | E10: =個人青色申告決算書!E12 -> 15800000 | G10: =SUM(E10:F11) -> 15800000
B12: 売上原価 | C12: 期首商品 | D12: 2 | E12: =個人青色申告決算書!E14 -> 0 | G12: =SUM(E12:F12) -> 0
C13: 仕入高 | D13: 3 | E13: =個人青色申告決算書!E15 -> 0 | G13: =SUM(E13:F13) -> 0
C14: 小計 | D14: 4 | E14: =SUM(E12:E13) -> 0 | G14: =SUM(G12:G13) -> 0
C15: 期末商品 | D15: 5 | E15: =個人青色申告決算書!E17 -> 0 | G15: 0
C16: 差引原価 | D16: 6 | E16: =E14-E15 -> 0 | G16: =G14-G15 -> 0
B17: 差引金額 | D17: 7 | E17: =E10-E16 -> 15800000 | G17: =G10-G16 -> 15800000
B18: 経 費 | C18: =IF(個人青色申告決算書!C21="","",個人青色申告決算書!C21) -> 租税公課 | D18: 8 | E18: =個人青色申告決算書!E21 -> 50000 | G18: 50000
C19: =IF(個人青色申告決算書!C22="","",個人青色申告決算書!C22) -> 荷造運賃 | D19: 9 | E19: =個人青色申告決算書!E22 -> 354600 | G19: 354600
C20: =IF(個人青色申告決算書!C23="","",個人青色申告決算書!C23) -> 水道光熱費 | D20: 10 | E20: =個人青色申告決算書!E23 -> 120852 | G20: 120852
C21: =IF(個人青色申告決算書!C24="","",個人青色申告決算書!C24) -> 旅費交通費 | D21: 11 | E21: =個人青色申告決算書!E24 -> 546717 | G21: 546717
C22: =IF(個人青色申告決算書!C25="","",個人青色申告決算書!C25) -> 通信費 | D22: 12 | E22: =個人青色申告決算書!E25 -> 376521 | G22: 376521
C23: =IF(個人青色申告決算書!C26="","",個人青色申告決算書!C26) -> 広告宣伝費 | D23: 13 | E23: =個人青色申告決算書!E26 -> 323500 | G23: 323500
C24: 接待交際費 | D24: 14 | E24: =個人青色申告決算書!E27 -> 450000 | G24: 450000
C25: =IF(個人青色申告決算書!C28="","",個人青色申告決算書!C28) -> 損害保険料 | D25: 15 | E25: =個人青色申告決算書!E28 -> 20000 | G25: 20000
C26: =IF(個人青色申告決算書!C29="","",個人青色申告決算書!C29) -> 修繕費 | D26: 16 | E26: =個人青色申告決算書!E29 -> 0 | G26: 0
C27: =IF(個人青色申告決算書!G12="","",個人青色申告決算書!G12) -> 消耗品費 | D27: 17 | E27: =個人青色申告決算書!I12 -> 750000 | G27: 750000
C28: =IF(個人青色申告決算書!G13="","",個人青色申告決算書!G13) -> 減価償却費 | D28: 18 | E28: =個人青色申告決算書!I13 -> 300000 | G28: 300000
C29: =IF(個人青色申告決算書!G14="","",個人青色申告決算書!G14) -> 福利厚生費 | D29: 19 | E29: =個人青色申告決算書!I14 -> 0 | G29: 0
C30: =IF(個人青色申告決算書!G15="","",個人青色申告決算書!G15) -> 給与賃金 | D30: 20 | E30: =個人青色申告決算書!I15 -> 0 | G30: 0
C31: =IF(個人青色申告決算書!G16="","",個人青色申告決算書!G16) -> 外注工賃 | D31: 21 | E31: =個人青色申告決算書!I16 -> 1115810 | G31: 1115810
C32: 利子割引料 | D32: 22 | E32: =個人青色申告決算書!I17 -> 500000 | F32: =-E32 -> -500000 | G32: 0
C33: =IF(個人青色申告決算書!G18="","",個人青色申告決算書!G18) -> 地代家賃 | D33: 23 | E33: =個人青色申告決算書!I18 -> 430000 | G33: 430000
C34: =IF(個人青色申告決算書!G19="","",個人青色申告決算書!G19) -> 貸倒金 | D34: 24 | E34: =個人青色申告決算書!I19 -> 0 | G34: 0
C35: =IF(個人青色申告決算書!G20="","",個人青色申告決算書!G20) -> 支払手数料 | D35: 25 | E35: =個人青色申告決算書!I20 -> 600000 | G35: 600000
C36: =IF(個人青色申告決算書!G21="","",個人青色申告決算書!G21) -> 車両費 | D36: 26 | E36: =個人青色申告決算書!I21 -> 250000 | G36: 250000
C37: =IF(個人青色申告決算書!G22="","",個人青色申告決算書!G22) -> 消費税 | D37: 27 | E37: =個人青色申告決算書!I22 -> 330000 | G37: 330000
C38: =IF(個人青色申告決算書!G23="","",個人青色申告決算書!G23) ->  | D38: 28 | E38: =個人青色申告決算書!I23 -> 0 | G38: 0
C39: =IF(個人青色申告決算書!G24="","",個人青色申告決算書!G24) ->  | D39: 29 | E39: =個人青色申告決算書!I24 -> 0 | G39: 0
C40: =IF(個人青色申告決算書!G25="","",個人青色申告決算書!G25) -> 税理士顧問料 | D40: 30 | E40: =個人青色申告決算書!I25 -> 330000 | F40: 120000 | G40: 450000
C41: =IF(個人青色申告決算書!G26="","",個人青色申告決算書!G26) -> 雑費 | D41: 31 | E41: =個人青色申告決算書!I26 -> 182000 | G41: 182000
C42: 計 | D42: 32 | E42: =SUM(E18:E41) -> 7030000 | G42: =SUM(G18:G41) -> 6650000
C43: 差引金額 | D43: 33 | E43: =SUM(E17-E42) -> 8770000 | G43: =SUM(G17-G42) -> 9150000
A44: 各種引当金・準備金 | B44: 繰戻額等 | C44: =IF(個人青色申告決算書!L12="","",個人青色申告決算書!L12) -> 貸倒引当金 | D44: 34 | E44: =個人青色申告決算書!N12 -> 0 | G44: 0
C45: =IF(個人青色申告決算書!L13="","",個人青色申告決算書!L13) ->  | D45: 35 | E45: =個人青色申告決算書!N13 -> 0 | G45: 0
C46: =IF(個人青色申告決算書!L14="","",個人青色申告決算書!L14) ->  | D46: 36 | E46: =個人青色申告決算書!N14 -> 0 | G46: 0
C47: 計 | D47: 37 | E47: =SUM(E44:E46) -> 0 | G47: =SUM(G44:G46) -> 0
B48: 繰入額等 | C48: =IF(個人青色申告決算書!L16="","",個人青色申告決算書!L16) -> 専従者給与 | D48: 38 | E48: =個人青色申告決算書!N16 -> 1020000 | F48: =-E48 -> -1020000 | G48: 0
C49: =IF(個人青色申告決算書!L17="","",個人青色申告決算書!L17) -> 貸倒引当金 | D49: 39 | E49: =個人青色申告決算書!N17 -> 0 | G49: 0
C50: =IF(個人青色申告決算書!L18="","",個人青色申告決算書!L18) ->  | D50: 40 | E50: =個人青色申告決算書!N18 -> 0 | G50: 0
C51: =IF(個人青色申告決算書!L19="","",個人青色申告決算書!L19) ->  | D51: 41 | E51: =個人青色申告決算書!N19 -> 0 | G51: 0
C52: 計 | D52: 42 | E52: =SUM(E48:E51) -> 1020000 | G52: =SUM(G48:G51) -> 0
C53: 青色特別控除前の所得金額 | D53: 43 | E53: =SUM(E43+E47-E52) -> 7750000 | G53: =SUM(G43+G47-G52) -> 9150000
A56: ※法人成りすると、税理士顧問料はアップするのが一般的です。
A57: ※法人成り後、現物給与などを利用して経費を増加させる場合には、適宜その
A58: 金額を入力していきます。

Sheet 税前ＰＬの組替
B6: 税引前損益計算書の個人から法人への組替
A8: 個人事業の損益計算書 | G8: 法人の損益計算書
B9: 科 目 | E9: 金 額 | G9: 科 目 | I9: 金 額
B10: 売上金額 | D10: 1 | E10: =経費の増減!G10 -> 15800000 | G10: 売上金額 | I10: =IF(E10="","",E10) -> 15800000
B12: 売上原価 | C12: 期首商品 | D12: 2 | E12: =経費の増減!G12 -> 0 | G12: 売上原価 | H12: 期首商品 | I12: 0
C13: 仕入高 | D13: 3 | E13: =経費の増減!G13 -> 0 | H13: 仕入高 | I13: 0
C14: 小計 | D14: 4 | E14: =SUM(E12:E13) -> 0 | H14: 小計 | I14: 0
C15: 期末商品 | D15: 5 | E15: =経費の増減!G15 -> 0 | H15: 期末商品 | I15: 0
C16: 差引原価 | D16: 6 | E16: =E14-E15 -> 0 | H16: 差引原価 | I16: 0
B17: 差引金額 | D17: 7 | E17: =E10-E16 -> 15800000 | G17: 売上総利益 | I17: =I10-I16 -> 15800000
B18: 経 費 | C18: =IF(経費の増減!C18="","",経費の増減!C18) -> 租税公課 | D18: 8 | E18: =IF(経費の増減!G18="","",経費の増減!G18) -> 50000 | G18: 販売費及び一般管理費 | H18: =IF(C18="","",C18) -> 租税公課 | I18: =IF(E18="","",E18) -> 50000
C19: =IF(経費の増減!C19="","",経費の増減!C19) -> 荷造運賃 | D19: 9 | E19: =IF(経費の増減!G19="","",経費の増減!G19) -> 354600 | H19: =IF(C19="","",C19) -> 荷造運賃 | I19: 354600
C20: =IF(経費の増減!C20="","",経費の増減!C20) -> 水道光熱費 | D20: 10 | E20: =IF(経費の増減!G20="","",経費の増減!G20) -> 120852 | H20: 水道光熱費 | I20: 120852
C21: =IF(経費の増減!C21="","",経費の増減!C21) -> 旅費交通費 | D21: 11 | E21: =IF(経費の増減!G21="","",経費の増減!G21) -> 546717 | H21: 旅費交通費 | I21: 546717
C22: =IF(経費の増減!C22="","",経費の増減!C22) -> 通信費 | D22: 12 | E22: =IF(経費の増減!G22="","",経費の増減!G22) -> 376521 | H22: 通信費 | I22: 376521
C23: =IF(経費の増減!C23="","",経費の増減!C23) -> 広告宣伝費 | D23: 13 | E23: =IF(経費の増減!G23="","",経費の増減!G23) -> 323500 | H23: 広告宣伝費 | I23: 323500
C24: =IF(経費の増減!C24="","",経費の増減!C24) -> 接待交際費 | D24: 14 | E24: =IF(経費の増減!G24="","",経費の増減!G24) -> 450000 | H24: 接待交際費 | I24: 450000
C25: =IF(経費の増減!C25="","",経費の増減!C25) -> 損害保険料 | D25: 15 | E25: =IF(経費の増減!G25="","",経費の増減!G25) -> 20000 | H25: 損害保険料 | I25: 20000
C26: =IF(経費の増減!C26="","",経費の増減!C26) -> 修繕費 | D26: 16 | E26: =IF(経費の増減!G26="","",経費の増減!G26) -> 0 | H26: 修繕費 | I26: 0
C27: =IF(経費の増減!C27="","",経費の増減!C27) -> 消耗品費 | D27: 17 | E27: =IF(経費の増減!G27="","",経費の増減!G27) -> 750000 | H27: 消耗品費 | I27: 750000
C28: =IF(経費の増減!C28="","",経費の増減!C28) -> 減価償却費 | D28: 18 | E28: =IF(経費の増減!G28="","",経費の増減!G28) -> 300000 | H28: 減価償却費 | I28: 300000
C29: =IF(経費の増減!C29="","",経費の増減!C29) -> 福利厚生費 | D29: 19 | E29: =IF(経費の増減!G29="","",経費の増減!G29) -> 0 | H29: 福利厚生費 | I29: 0
C30: =IF(経費の増減!C30="","",経費の増減!C30) -> 給与賃金 | D30: 20 | E30: =IF(経費の増減!G30="","",経費の増減!G30) -> 0 | H30: 給与賃金 | I30: 0
C31: =IF(経費の増減!C31="","",経費の増減!C31) -> 外注工賃 | D31: 21 | E31: =IF(経費の増減!G31="","",経費の増減!G31) -> 1115810 | H31: 外注工賃 | I31: 1115810
C32: =IF(経費の増減!C32="","",経費の増減!C32) -> 利子割引料 | D32: 22 | E32: =IF(経費の増減!G32="","",経費の増減!G32) -> 0 | H32: 利子割引料 | I32: 0
C33: =IF(経費の増減!C33="","",経費の増減!C33) -> 地代家賃 | D33: 23 | E33: =IF(経費の増減!G33="","",経費の増減!G33) -> 430000 | H33: 地代家賃 | I33: 430000
C34: =IF(経費の増減!C34="","",経費の増減!C34) -> 貸倒金 | D34: 24 | E34: =IF(経費の増減!G34="","",経費の増減!G34) -> 0 | H34: 貸倒金 | I34: 0
C35: =IF(経費の増減!C35="","",経費の増減!C35) -> 支払手数料 | D35: 25 | E35: =IF(経費の増減!G35="","",経費の増減!G35) -> 600000 | H35: 支払手数料 | I35: 600000
C36: =IF(経費の増減!C36="","",経費の増減!C36) -> 車両費 | D36: 26 | E36: =IF(経費の増減!G36="","",経費の増減!G36) -> 250000 | H36: 車両費 | I36: 250000
C37: =IF(経費の増減!C37="","",経費の増減!C37) -> 消費税 | D37: 27 | E37: =IF(経費の増減!G37="","",経費の増減!G37) -> 330000 | H37: 消費税 | I37: 330000
C38: =IF(経費の増減!C38="","",経費の増減!C38) ->  | D38: 28 | E38: =IF(経費の増減!G38="","",経費の増減!G38) -> 0 | I38: 0
C39: =IF(経費の増減!C39="","",経費の増減!C39) ->  | D39: 29 | E39: =IF(経費の増減!G39="","",経費の増減!G39) -> 0 | I39: 0
C40: =IF(経費の増減!C40="","",経費の増減!C40) -> 税理士顧問料 | D40: 30 | E40: =IF(経費の増減!G40="","",経費の増減!G40) -> 450000 | H40: 税理士顧問料 | I40: =E40 -> 450000
C41: =IF(経費の増減!C41="","",経費の増減!C41) -> 雑費 | D41: 31 | E41: =IF(経費の増減!G41="","",経費の増減!G41) -> 182000 | H41: 雑費 | I41: =IF(E41="","",E41) -> 182000
C42: 計 | D42: 32 | E42: =SUM(E18:E41) -> 6650000 | H42: 法定福利費 | I42: =給与の情報!N39 -> 0
C43: 差引金額 | D43: 33 | E43: =SUM(E17-E42) -> 9150000 | H43: 役員報酬 | I43: =給与の情報!N12 -> 9270000
A44: 各種引当金・準備金 | B44: 繰戻額等 | C44: =IF(経費の増減!C44="","",経費の増減!C44) -> 貸倒引当金 | D44: 34 | E44: =IF(経費の増減!G44="","",経費の増減!G44) -> 0 | H44: 貸倒引当金繰入額 | I44: =E49 -> 0
C45: =IF(経費の増減!C45="","",経費の増減!C45) ->  | D45: 35 | E45: =IF(経費の増減!G45="","",経費の増減!G45) -> 0 | H45: 販売費及び一般管理費計 | I45: =SUM(I18:I44) -> 15920000
C46: =IF(経費の増減!C46="","",経費の増減!C46) ->  | D46: 36 | E46: =IF(経費の増減!G46="","",経費の増減!G46) -> 0 | G46: 営業利益 | I46: =I17-I45 -> -120000
C47: 計 | D47: 37 | E47: =SUM(E44:E46) -> 0 | G47: 営外収益
B48: 繰入額等 | C48: =IF(経費の増減!C48="","",経費の増減!C48) -> 専従者給与 | D48: 38 | E48: =IF(経費の増減!G48="","",経費の増減!G48) -> 0
C49: =IF(経費の増減!C49="","",経費の増減!C49) -> 貸倒引当金 | D49: 39 | E49: =IF(経費の増減!G49="","",経費の増減!G49) -> 0
C50: =IF(経費の増減!C50="","",経費の増減!C50) ->  | D50: 40 | E50: =IF(経費の増減!G50="","",経費の増減!G50) -> 0 | H50: 計 | I50: =SUM(I47:I49) -> 0
C51: =IF(経費の増減!C51="","",経費の増減!C51) ->  | D51: 41 | E51: =IF(経費の増減!G51="","",経費の増減!G51) -> 0 | G51: 営外費用 | H51: 支払利息割引料 | I51: =E32 -> 0
C52: 計 | D52: 42 | E52: =SUM(E48:E51) -> 0
C53: 青色特別控除前の所得金額 | D53: 43 | E53: =SUM(E43+E47-E52) -> 9150000
H54: 計 | I54: =SUM(I51:I53) -> 0
G55: 経常利益 | I55: =I46+I50-I54 -> -120000
A56: ※通常は特に追加入力する項目はありません。 | G56: 特別利益 | H56: 貸倒引当金戻入額 | I56: =E44 -> 0
H58: 計 | I58: =SUM(I56:I57) -> 0
G59: 特別損失
H61: 計 | I61: =SUM(I59:I60) -> 0
G62: 税引前当期純利益 | I62: =I55+I58-I61 -> -120000

Sheet 法人税シミュレーション
A5: １、所得の計算（別表４） | E5: ２、 法人税の計算 | H5: ５、県民税の計算 | K5: ６、納税見込額
A6: ="税引前当期利益" -> 税引前当期利益 | C6: =税前ＰＬの組替!I62 -> -120000 | E6: 所得金額 | F6: =C33 -> -120000 | H6: 法人事業税 | K6: 法人税 | L6: =F15 -> 0
A7: 加 算 | E7: 800万以下の金額 | F7: =IF(F6<=0,0,IF($F$6<=8000000,ROUNDDOWN($F$6/1000,0)*1000,8000000)) -> 0 | H7: 400万以下の金額 | I7: =IF(F6<=0,0,IF($F$6<=4000000,ROUNDDOWN($F$6/1000,0)*1000,4000000)) -> 0 | K7: 地方法人税 | L7: =F21 -> 0
E8: 800万超の金額 | F8: =IF($F$6>8000000,ROUNDDOWN(($F$6-8000000)/1000,0)*1000,0) -> 0 | H8: 800万以下の金額 | I8: =IF($F$6<=4000000,0,IF($F$6<=8000000,ROUNDDOWN(($F$6-4000000)/1000,0)*1000,4000000)) -> 0 | K8: =H16 -> 法人事業税 | L8: =I16 -> 0
E9: 800万までの税率 | F9: 0.15 | H9: 800万超の金額 | I9: =IF(F6<=8000000,0,ROUNDDOWN((F6-8000000)/1000,0)*1000) -> 0 | K9: =H23 -> 法人県民税 | L9: =I23 -> 20000
E10: 800万超の税率 | F10: 0.234 | H10: 400万以下の税率 | I10: 0.034 | K10: =H35 -> 地方法人特別税 | L10: =I35 -> 0
E11: 800万までの税額 | F11: =ROUNDDOWN((F7*F9)/100,0)*100 -> 0 | H11: 800万以下の税率 | I11: 0.051 | K11: =E31 -> 法人市民税 | L11: =F31 -> 50000
E12: 800万超の税額 | F12: =ROUNDDOWN((F8*F10)/100,0)*100 -> 0 | H12: 800万超の税率 | I12: 0.067 | K12: 合計納税額 | L12: =SUM(L6:L11) -> 70000
E13: 法人税額 | F13: =SUM(F11:F12) -> 0 | H13: 400万以下の税額 | I13: =ROUNDDOWN(I7*I10/100,0)*100 -> 0
E14: 法人税額特別控除額 | H14: 800万以下の税額 | I14: =ROUNDDOWN(I8*I11/100,0)*100 -> 0
E15: 差引法人税額 | F15: =ROUNDDOWN(SUM(F13-F14),-2) -> 0 | H15: 800万超の税額 | I15: =ROUNDDOWN(I9*I12/100,0)*100 -> 0
H16: 法人事業税 | I16: =SUM(I13:I15) -> 0
E17: ３、地方法人税の計算 | H17: 法人県民税
E18: 法人税割 | H18: 法人税額 | I18: =ROUNDDOWN(F15/1000,0)*1000 -> 0
B19: ="加算小計" -> 加算小計 | C19: =SUM(C7:C18) -> 0 | E19: =H18 -> 法人税額 | F19: =I18 -> 0 | H19: 法人税割税率 | I19: 0.032
A20: 減 算 | E20: 税率 | F20: 0.044 | H20: 法人税割額 | I20: =ROUNDDOWN((I18*I19)/100,0)*100 -> 0
E21: 地方法人税額 | F21: =ROUNDDOWN(F19*F20/100,0)*100 -> 0 | H21: 法人均等割額 | I21: 20000
H22: 法人税均等割 | I22: =SUM(I21) -> 20000
E23: ４、市民税の計算 | H23: 法人県民税 | I23: =I20+I22 -> 20000
E24: 法人税割 | H24: 地方法人特別税（国税）
E25: =E13 -> 法人税額 | F25: =ROUNDDOWN(F15/1000,0)*1000 -> 0 | H25: 400万以下の金額 | I25: =IF(F6<=0,0,IF($F$6<=4000000,ROUNDDOWN($F$6/1000,0)*1000,4000000)) -> 0
E26: 法人税割税率 | F26: 0.097 | H26: 800万以下の金額 | I26: =IF($F$6<=4000000,0,IF($F$6<=8000000,ROUNDDOWN(($F$6-4000000)/1000,0)*1000,4000000)) -> 0
E27: 法人税割税額 | F27: =ROUNDDOWN(F25*F26/100,0)*100 -> 0 | H27: 800万超の金額 | I27: =IF(F6<=8000000,0,ROUNDDOWN((F6-8000000)/1000,0)*1000) -> 0
E28: 法人税均等割 | H28: 400万以下の税率 | I28: 0.034
E29: 法人均等割額 | F29: 50000 | H29: 800万以下の税率 | I29: 0.051
E30: 法人税均等割 | F30: =SUM(F29) -> 50000 | H30: 800万超の税率 | I30: 0.067
E31: 法人市民税 | F31: =F27+F30 -> 50000 | H31: 400万以下の税額 | I31: =ROUNDDOWN(I25*I28/100,0)*100 -> 0
B32: 減算小計 | C32: =SUM(C20:C31) -> 0 | H32: 800万以下の税額 | I32: =ROUNDDOWN(I26*I29/100,0)*100 -> 0
A33: 所得金額 | C33: =C6+C19-C32 -> -120000 | H33: 800万超の税額 | I33: =ROUNDDOWN(I27*I30/100,0)*100 -> 0
A34: ※通常は特に追加入力する数字はありません。 | H34: 基準法人所得割額 | I34: =SUM(I31:I33) -> 0
A35: ※申告する自治体によって、住民税は税率や均等割額が変わります。 | H35: 地方法人特別税 | I35: =ROUNDDOWN(I34*0.432,-2) -> 0
A36: 自治体のＨＰなどから確認して、上書き訂正してください。

Sheet まとめ
A4: =個人青色申告決算書!L7&"様" -> 今野 友夫様 | N4: 小林敬幸税理士事務所
A5: 個人事業を法人事業に変更した場合の負担額変化シミュレーション
A7: １．損益計算書の比較 | J7: ２、税負担、社会保険料及び税理士報酬の変化
A9: 個人事業の損益計算書 | F9: 法人変更後の損益計算書 | J9: 個人事業 | M9: 法人成り後
A10: 科 目 | D10: 金 額 | F10: 科 目 | H10: 金 額
A11: 売上金額 | C11: 1 | D11: =経費の増減!E10 -> 15800000 | F11: 売上金額 | H11: =税前ＰＬの組替!I10 -> 15800000 | J11: ①事業主の税金 | M11: ①法人の税金
H12: =IF(D12="","",D12) ->  | J12: 所得税 | K12: =事業主の所得税申告状況!C30 -> 694700 | M12: 法人税・地方法人税 | N12: =法人税シミュレーション!L6+法人税シミュレーション!L7 -> 0
A13: 売上原価 | B13: 期首商品 | C13: 2 | D13: =経費の増減!E12 -> 0 | F13: 売上原価 | G13: 期首商品 | H13: =税前ＰＬの組替!I12 -> 0 | J13: 住民税 | K13: =事業主の所得税申告状況!C31 -> 554000 | M13: 法人事業税 | N13: =法人税シミュレーション!L8 -> 0
B14: 仕入高 | C14: 3 | D14: =経費の増減!E13 -> 0 | G14: 仕入高 | H14: =税前ＰＬの組替!I13 -> 0 | J14: 事業税 | K14: =事業主の所得税申告状況!C32 -> 242500 | M14: 法人県民税 | N14: =法人税シミュレーション!L9 -> 20000
B15: 小計 | C15: 4 | D15: =経費の増減!E14 -> 0 | G15: 小計 | H15: =税前ＰＬの組替!I14 -> 0 | J15: 合計 | K15: =SUM(K12:K14) -> 1491200 | M15: 地方法人特別税 | N15: =法人税シミュレーション!L10 -> 0
B16: 期末商品 | C16: 5 | D16: =経費の増減!E15 -> 0 | G16: 期末商品 | H16: =税前ＰＬの組替!I15 -> 0 | M16: 法人市民税 | N16: =法人税シミュレーション!L11 -> 50000
B17: 差引原価 | C17: 6 | D17: =経費の増減!E16 -> 0 | G17: 差引原価 | H17: =税前ＰＬの組替!I16 -> 0 | J17: ②専従者の税金 | M17: 合計 | N17: =SUM(N12:N16) -> 70000
A18: 差引金額 | C18: 7 | D18: =経費の増減!E17 -> 15800000 | F18: 売上総利益 | H18: =税前ＰＬの組替!I17 -> 15800000 | J18: 所得税 | K18: =給与の情報!G34 -> 0
A19: 経 費 | B19: =IF(税前ＰＬの組替!C18="","",税前ＰＬの組替!C18) -> 租税公課 | C19: 8 | D19: =経費の増減!E18 -> 50000 | F19: 販売費及び一般管理費 | G19: =IF(税前ＰＬの組替!H18="","",税前ＰＬの組替!H18) -> 租税公課 | H19: =税前ＰＬの組替!I18 -> 50000 | J19: 住民税 | K19: =給与の情報!G35 -> 0 | M19: ②事業主と家族従業員の税金
B20: =IF(税前ＰＬの組替!C19="","",税前ＰＬの組替!C19) -> 荷造運賃 | C20: 9 | D20: =経費の増減!E19 -> 354600 | G20: =IF(税前ＰＬの組替!H19="","",税前ＰＬの組替!H19) -> 荷造運賃 | H20: =税前ＰＬの組替!I19 -> 354600 | J20: 合計 | K20: =SUM(K18:K19) -> 0 | M20: 所得税 | N20: =給与の情報!N34 -> 516100
B21: =IF(税前ＰＬの組替!C20="","",税前ＰＬの組替!C20) -> 水道光熱費 | C21: 10 | D21: =経費の増減!E20 -> 120852 | G21: =IF(税前ＰＬの組替!H20="","",税前ＰＬの組替!H20) -> 水道光熱費 | H21: =税前ＰＬの組替!I20 -> 120852 | M21: 住民税 | N21: =給与の情報!N35 -> 466500
B22: =IF(税前ＰＬの組替!C21="","",税前ＰＬの組替!C21) -> 旅費交通費 | C22: 11 | D22: =経費の増減!E21 -> 546717 | G22: =IF(税前ＰＬの組替!H21="","",税前ＰＬの組替!H21) -> 旅費交通費 | H22: =税前ＰＬの組替!I21 -> 546717 | M22: 合計 | N22: =SUM(N20:N21) -> 982600
B23: =IF(税前ＰＬの組替!C22="","",税前ＰＬの組替!C22) -> 通信費 | C23: 12 | D23: =経費の増減!E22 -> 376521 | G23: =IF(税前ＰＬの組替!H22="","",税前ＰＬの組替!H22) -> 通信費 | H23: =税前ＰＬの組替!I22 -> 376521
B24: =IF(税前ＰＬの組替!C23="","",税前ＰＬの組替!C23) -> 広告宣伝費 | C24: 13 | D24: =経費の増減!E23 -> 323500 | G24: =IF(税前ＰＬの組替!H23="","",税前ＰＬの組替!H23) -> 広告宣伝費 | H24: =税前ＰＬの組替!I23 -> 323500 | J24: 税金合計 | K24: =SUM(K15,K20) -> 1491200 | M24: 税金合計 | N24: =SUM(N17,N22) -> 1052600
B25: =IF(税前ＰＬの組替!C24="","",税前ＰＬの組替!C24) -> 接待交際費 | C25: 14 | D25: =経費の増減!E24 -> 450000 | G25: =IF(税前ＰＬの組替!H24="","",税前ＰＬの組替!H24) -> 接待交際費 | H25: =税前ＰＬの組替!I24 -> 450000
B26: =IF(税前ＰＬの組替!C25="","",税前ＰＬの組替!C25) -> 損害保険料 | C26: 15 | D26: =経費の増減!E25 -> 20000 | G26: =IF(税前ＰＬの組替!H25="","",税前ＰＬの組替!H25) -> 損害保険料 | H26: =税前ＰＬの組替!I25 -> 20000 | J26: ③社会保険料 | M26: ③社会保険料
B27: =IF(税前ＰＬの組替!C26="","",税前ＰＬの組替!C26) -> 修繕費 | C27: 16 | D27: =経費の増減!E26 -> 0 | G27: =IF(税前ＰＬの組替!H26="","",税前ＰＬの組替!H26) -> 修繕費 | H27: =税前ＰＬの組替!I26 -> 0 | J27: 国民健康保険料 | K27: =事業主の所得税申告状況!C14 -> 530000 | M27: 法人負担保険料 | N27: =給与の情報!N39 -> 0
B28: =IF(税前ＰＬの組替!C27="","",税前ＰＬの組替!C27) -> 消耗品費 | C28: 17 | D28: =経費の増減!E27 -> 750000 | G28: =IF(税前ＰＬの組替!H27="","",税前ＰＬの組替!H27) -> 消耗品費 | H28: =税前ＰＬの組替!I27 -> 750000 | J28: 事業主の国民年金 | K28: =事業主の所得税申告状況!C15 -> 170000 | M28: 事業主・従業員負担保険料 | N28: =給与の情報!N40 -> 0
B29: =IF(税前ＰＬの組替!C28="","",税前ＰＬの組替!C28) -> 減価償却費 | C29: 18 | D29: =経費の増減!E28 -> 300000 | G29: =IF(税前ＰＬの組替!H28="","",税前ＰＬの組替!H28) -> 減価償却費 | H29: =税前ＰＬの組替!I28 -> 300000 | J29: 専従者の国民年金 | K29: =給与の情報!G19 -> 170000
B30: =IF(税前ＰＬの組替!C29="","",税前ＰＬの組替!C29) -> 福利厚生費 | C30: 19 | D30: =経費の増減!E29 -> 0 | G30: =IF(税前ＰＬの組替!H29="","",税前ＰＬの組替!H29) -> 福利厚生費 | H30: =税前ＰＬの組替!I29 -> 0 | J30: 合計 | K30: =SUM(K27:K29) -> 870000 | M30: 国民健康保険料（未加入の場合） | N30: =給与の情報!N18 -> 530000
B31: =IF(税前ＰＬの組替!C30="","",税前ＰＬの組替!C30) -> 給与賃金 | C31: 20 | D31: =経費の増減!E30 -> 0 | G31: =IF(税前ＰＬの組替!H30="","",税前ＰＬの組替!H30) -> 給与賃金 | H31: =税前ＰＬの組替!I30 -> 0 | M31: 国民年金（未加入の場合） | N31: =給与の情報!N19 -> 340000
B32: =IF(税前ＰＬの組替!C31="","",税前ＰＬの組替!C31) -> 外注工賃 | C32: 21 | D32: =経費の増減!E31 -> 1115810 | G32: =IF(税前ＰＬの組替!H31="","",税前ＰＬの組替!H31) -> 外注工賃 | H32: =税前ＰＬの組替!I31 -> 1115810 | M32: 合計 | N32: =SUM(N27:N31) -> 870000
B33: =IF(税前ＰＬの組替!C32="","",税前ＰＬの組替!C32) -> 利子割引料 | C33: 22 | D33: =経費の増減!E32 -> 500000 | G33: =IF(税前ＰＬの組替!H32="","",税前ＰＬの組替!H32) -> 利子割引料 | H33: =税前ＰＬの組替!I32 -> 0
B34: =IF(税前ＰＬの組替!C33="","",税前ＰＬの組替!C33) -> 地代家賃 | C34: 23 | D34: =経費の増減!E33 -> 430000 | G34: =IF(税前ＰＬの組替!H33="","",税前ＰＬの組替!H33) -> 地代家賃 | H34: =税前ＰＬの組替!I33 -> 430000 | J34: ④税理士報酬 | M34: ④税理士報酬
B35: =IF(税前ＰＬの組替!C34="","",税前ＰＬの組替!C34) -> 貸倒金 | C35: 24 | D35: =経費の増減!E34 -> 0 | G35: =IF(税前ＰＬの組替!H34="","",税前ＰＬの組替!H34) -> 貸倒金 | H35: =税前ＰＬの組替!I34 -> 0 | J35: 税理士報酬 | K35: =経費の増減!E40 -> 330000 | M35: 税理士報酬 | N35: =H41 -> 450000
B36: =IF(税前ＰＬの組替!C35="","",税前ＰＬの組替!C35) -> 支払手数料 | C36: 25 | D36: =経費の増減!E35 -> 600000 | G36: =IF(税前ＰＬの組替!H35="","",税前ＰＬの組替!H35) -> 支払手数料 | H36: =税前ＰＬの組替!I35 -> 600000
B37: =IF(税前ＰＬの組替!C36="","",税前ＰＬの組替!C36) -> 車両費 | C37: 26 | D37: =経費の増減!E36 -> 250000 | G37: =IF(税前ＰＬの組替!H36="","",税前ＰＬの組替!H36) -> 車両費 | H37: =税前ＰＬの組替!I36 -> 250000 | J37: 総合計 | K37: =SUM(K35,K30,K24) -> 2691200 | M37: 総合計 | N37: =SUM(N24,N32,N35) -> 2372600
B38: =IF(税前ＰＬの組替!C37="","",税前ＰＬの組替!C37) -> 消費税 | C38: 27 | D38: =経費の増減!E37 -> 330000 | G38: =IF(税前ＰＬの組替!H37="","",税前ＰＬの組替!H37) -> 消費税 | H38: =税前ＰＬの組替!I37 -> 330000
B39: =IF(税前ＰＬの組替!C38="","",税前ＰＬの組替!C38) ->  | C39: 28 | D39: =経費の増減!E38 -> 0 | G39: =IF(税前ＰＬの組替!H38="","",税前ＰＬの組替!H38) ->  | H39: =税前ＰＬの組替!I38 -> 0 | J39: 個人事業の場合と法人変更後の負担額の比較グラフ
B40: =IF(税前ＰＬの組替!C39="","",税前ＰＬの組替!C39) ->  | C40: 29 | D40: =経費の増減!E39 -> 0 | G40: =IF(税前ＰＬの組替!H39="","",税前ＰＬの組替!H39) ->  | H40: =税前ＰＬの組替!I39 -> 0
B41: =IF(税前ＰＬの組替!C40="","",税前ＰＬの組替!C40) -> 税理士顧問料 | C41: 30 | D41: =経費の増減!E40 -> 330000 | G41: =IF(税前ＰＬの組替!H40="","",税前ＰＬの組替!H40) -> 税理士顧問料 | H41: =税前ＰＬの組替!I40 -> 450000
B42: =IF(税前ＰＬの組替!C41="","",税前ＰＬの組替!C41) -> 雑費 | C42: 31 | D42: =経費の増減!E41 -> 182000 | G42: =IF(税前ＰＬの組替!H41="","",税前ＰＬの組替!H41) -> 雑費 | H42: =税前ＰＬの組替!I41 -> 182000
B43: 計 | C43: 32 | D43: =経費の増減!E42 -> 7030000 | G43: =IF(税前ＰＬの組替!H42="","",税前ＰＬの組替!H42) -> 法定福利費 | H43: =税前ＰＬの組替!I42 -> 0
B44: 差引金額 | C44: 33 | D44: =経費の増減!E43 -> 8770000 | G44: =IF(税前ＰＬの組替!H43="","",税前ＰＬの組替!H43) -> 役員報酬 | H44: =税前ＰＬの組替!I43 -> 9270000
A45: 繰戻額等 | B45: =IF(税前ＰＬの組替!C44="","",税前ＰＬの組替!C44) -> 貸倒引当金 | C45: 34 | D45: =経費の増減!E44 -> 0 | G45: =IF(税前ＰＬの組替!H44="","",税前ＰＬの組替!H44) -> 貸倒引当金繰入額 | H45: =税前ＰＬの組替!I44 -> 0
B46: =IF(税前ＰＬの組替!C45="","",税前ＰＬの組替!C45) ->  | C46: 35 | D46: =経費の増減!E45 -> 0 | G46: 販売費及び一般管理費計 | H46: =税前ＰＬの組替!I45 -> 15920000
B47: =IF(税前ＰＬの組替!C46="","",税前ＰＬの組替!C46) ->  | C47: 36 | D47: =経費の増減!E46 -> 0 | F47: 営業利益 | H47: =税前ＰＬの組替!I46 -> -120000
B48: 計 | C48: 37 | D48: =経費の増減!E47 -> 0 | F48: 営外収益 | G48: =IF(税前ＰＬの組替!H47="","",税前ＰＬの組替!H47) ->  | H48: =税前ＰＬの組替!I47 -> 0
A49: 繰入額等 | B49: =IF(税前ＰＬの組替!C48="","",税前ＰＬの組替!C48) -> 専従者給与 | C49: 38 | D49: =経費の増減!E48 -> 1020000 | G49: =IF(税前ＰＬの組替!H48="","",税前ＰＬの組替!H48) ->  | H49: =税前ＰＬの組替!I48 -> 0
B50: =IF(税前ＰＬの組替!C49="","",税前ＰＬの組替!C49) -> 貸倒引当金 | C50: 39 | D50: =経費の増減!E49 -> 0 | G50: =IF(税前ＰＬの組替!H49="","",税前ＰＬの組替!H49) ->  | H50: =税前ＰＬの組替!I49 -> 0
B51: =IF(税前ＰＬの組替!C50="","",税前ＰＬの組替!C50) ->  | C51: 40 | D51: =経費の増減!E50 -> 0 | G51: 計 | H51: =税前ＰＬの組替!I50 -> 0
B52: =IF(税前ＰＬの組替!C51="","",税前ＰＬの組替!C51) ->  | C52: 41 | D52: =経費の増減!E51 -> 0 | F52: 営外費用 | G52: =IF(税前ＰＬの組替!H51="","",税前ＰＬの組替!H51) -> 支払利息割引料 | H52: =税前ＰＬの組替!I51 -> 0
B53: 計 | C53: 42 | D53: =経費の増減!E52 -> 1020000 | G53: =IF(税前ＰＬの組替!H52="","",税前ＰＬの組替!H52) ->  | H53: =税前ＰＬの組替!I52 -> 0
B54: 青色特別控除前の所得金額 | C54: 43 | D54: =経費の増減!E53 -> 7750000 | G54: =IF(税前ＰＬの組替!H53="","",税前ＰＬの組替!H53) ->  | H54: =税前ＰＬの組替!I53 -> 0
G55: 計 | H55: =税前ＰＬの組替!I54 -> 0
F56: 経常利益 | H56: =税前ＰＬの組替!I55 -> -120000
F57: 特別利益 | G57: =IF(税前ＰＬの組替!H56="","",税前ＰＬの組替!H56) -> 貸倒引当金戻入額 | H57: =税前ＰＬの組替!I56 -> 0
G58: =IF(税前ＰＬの組替!H57="","",税前ＰＬの組替!H57) ->  | H58: =税前ＰＬの組替!I57 -> 0
G59: 計 | H59: =税前ＰＬの組替!I58 -> 0
F60: 特別損失 | G60: =IF(税前ＰＬの組替!H59="","",税前ＰＬの組替!H59) ->  | H60: =税前ＰＬの組替!I59 -> 0
G61: =IF(税前ＰＬの組替!H60="","",税前ＰＬの組替!H60) ->  | H61: =税前ＰＬの組替!I60 -> 0
G62: 計 | H62: =税前ＰＬの組替!I61 -> 0
F63: 税引前当期純利益 | H63: =税前ＰＬの組替!I62 -> -120000
